bitfinex-derivatives/quotes_BNBF0:USTF0_20251002
["timestamp","ask_amount","ask_price","bid_price","bid_amount"]
[1759401574996,0.5299359,1044.7,1042.9,1.39]
[1759401575193,0.5299359,1044.6,1042.9,1.39]
[1759401575493,0.5299359,1044.5,1042.9,1.39]
[1759401575693,0.5299359,1044.4,1042.9,1.39]
[1759401575893,0.5299359,1044.3,1042.9,1.39]
[1759401576092,0.5299359,1044.2,1042.9,1.39]
[1759401576292,0.85401606,1044.8,1042.9,1.39]
[1759401576492,1.38394094,1044.7,1042.9,1.39]
[1759401576692,0.52992488,1044.6,1042.9,1.39]
[1759401576893,0.52992488,1044.5,1042.9,1.39]
[1759401577097,0.52992488,1044.4,1042.9,1.39]
[1759401577291,0.52992488,1044.3,1042.9,1.39]
[1759401577596,0.52992488,1044.2,1042.9,1.39]
[1759401577794,0.85401606,1044.8,1042.9,1.39]
[1759401577996,0.52995888,1044.7,1042.9,1.39]
[1759401578193,0.52995888,1044.6,1042.9,1.39]
[1759401578394,0.52995888,1044.5,1042.9,1.39]
[1759401578597,0.52995888,1044.4,1042.9,1.39]
[1759401578894,0.52995888,1044.3,1042.9,1.39]
[1759401579097,0.52995888,1044.2,1042.9,1.39]
[1759401579394,0.53014372,1044.1,1042.9,1.39]
[1759401579597,0.85401606,1044.6,1042.9,1.39]
[1759401579798,0.53014394,1044.5,1042.9,1.39]
[1759401580097,0.53014394,1044.4,1042.9,1.39]
[1759401580298,0.53014394,1044.3,1042.9,1.39]
[1759401580598,0.53014394,1044.2,1042.9,1.39]
[1759401580798,0.53014394,1044.1,1042.9,1.39]
[1759401580999,0.53014394,1044.0,1042.9,1.39]
[1759401581193,0.85401606,1044.6,1042.9,1.39]
[1759401581397,0.53041791,1044.5,1042.9,1.39]
[1759401581596,0.53041791,1044.4,1042.9,1.39]
[1759401581794,0.53041791,1044.3,1042.9,1.39]
[1759401581999,0.53041791,1044.2,1042.9,1.39]
[1759401582199,0.53041791,1044.1,1042.9,1.39]
[1759401582399,0.53041791,1044.0,1042.9,1.39]
[1759401582600,0.85401606,1044.6,1042.9,1.39]
[1759401582801,0.53059922,1044.5,1042.9,1.39]
[1759401582999,0.85401606,1044.6,1042.9,1.39]
[1759401583000,0.53059922,1044.4,1042.9,1.39]
[1759401583202,0.53059922,1044.3,1042.9,1.39]
[1759401583399,0.53059922,1044.2,1042.9,1.39]
[1759401583599,0.53059922,1044.1,1042.9,1.39]
[1759401583804,0.53059922,1044.0,1042.9,1.39]
[1759401584002,0.85401606,1044.6,1042.9,1.39]
[1759401584206,0.53106432,1044.5,1042.9,1.39]
[1759401584512,0.53106432,1044.4,1042.9,1.39]
[1759401584809,0.53106432,1044.3,1042.9,1.39]
[1759401585011,0.53106432,1044.2,1042.9,1.39]
[1759401585213,0.53106432,1044.1,1042.9,1.39]
[1759401585415,0.53106432,1044.0,1042.9,1.39]
[1759401585614,0.85401606,1044.6,1042.9,1.39]
[1759401585814,0.53126466,1044.5,1042.9,1.39]
[1759401586012,0.53126466,1044.4,1042.9,1.39]
[1759401586215,0.53126466,1044.3,1042.9,1.39]
[1759401586515,0.53126466,1044.2,1042.9,1.39]
[1759401586717,0.53126466,1044.1,1042.9,1.39]
[1759401586916,0.53126466,1044.0,1042.9,1.39]
[1759401587113,0.85401606,1044.6,1042.9,1.39]
[1759401587416,0.53142172,1044.5,1042.9,1.39]
[1759401587616,0.53142172,1044.4,1042.9,1.39]
[1759401587813,0.53142172,1044.3,1042.9,1.39]
[1759401588012,0.53142172,1044.2,1042.9,1.39]
[1759401588316,0.53142172,1044.1,1042.9,1.39]
[1759401588613,0.85401606,1044.8,1042.9,1.39]
[1759401588614,0.53142172,1044.0,1042.9,1.39]
[1759401588812,0.53142172,1043.9,1042.9,1.39]
[1759401589011,0.53142172,1043.8,1042.9,1.39]
[1759401589212,0.85401606,1044.8,1042.9,1.39]
[1759401589415,0.53162982,1044.7,1042.9,1.39]
[1759401589615,0.53162982,1044.6,1042.9,1.39]
[1759401589816,0.53162982,1044.5,1042.9,1.39]
[1759401590116,0.53162982,1044.4,1042.9,1.39]
[1759401590316,0.53162982,1044.3,1042.9,1.39]
[1759401590612,0.53162982,1044.2,1042.9,1.39]
[1759401590812,0.53162982,1044.1,1042.9,1.39]
[1759401591013,0.53162982,1044.0,1042.9,1.39]
[1759401591313,0.53162982,1043.9,1042.9,1.39]
[1759401591616,0.53162982,1043.8,1042.9,1.39]
[1759401591813,0.85401606,1044.8,1042.9,1.39]
[1759401592012,0.53179786,1044.7,1042.9,1.39]
[1759401592211,0.53179786,1044.6,1042.9,1.39]
[1759401592415,0.53179786,1044.5,1042.9,1.39]
[1759401592616,0.53179786,1044.4,1042.9,1.39]
[1759401592816,0.53179786,1044.3,1042.9,1.39]
[1759401593014,0.53179786,1044.2,1042.9,1.39]
[1759401593214,0.53179786,1044.1,1042.9,1.39]
[1759401593417,0.53179786,1044.0,1042.9,1.39]
[1759401593613,0.53179786,1043.9,1042.9,1.39]
[1759401593814,0.53179786,1043.8,1042.9,1.39]
[1759401594018,0.85401606,1044.6,1042.9,1.39]
[1759401594216,0.53188608,1044.5,1042.9,1.39]
[1759401594415,0.53188608,1044.4,1042.9,1.39]
[1759401594617,0.53188608,1044.3,1042.9,1.39]
[1759401594818,0.53188608,1044.2,1042.9,1.39]
[1759401595017,0.53188608,1044.1,1042.9,1.39]
[1759401595318,0.53188608,1044.0,1042.9,1.39]
[1759401595516,0.53188608,1043.9,1042.9,1.39]
[1759401595714,0.53188608,1043.8,1042.9,1.39]
[1759401595915,0.85401606,1044.6,1042.9,1.39]
[1759401596115,0.53181225,1044.5,1042.9,1.39]
[1759401596320,0.53181225,1044.4,1042.9,1.39]
[1759401596520,0.53181225,1044.3,1042.9,1.39]
[1759401596719,0.53181225,1044.2,1042.9,1.39]
[1759401597020,0.53181225,1044.1,1042.9,1.39]
[1759401597320,0.53181225,1044.0,1042.9,1.39]
[1759401597517,0.53181225,1043.9,1042.9,1.39]
[1759401597721,0.53181225,1043.8,1042.9,1.39]
[1759401597918,0.85401606,1044.7,1042.9,1.39]
[1759401598118,0.53177903,1044.6,1042.9,1.39]
[1759401598323,0.53177903,1044.5,1042.9,1.39]
[1759401598534,0.53177903,1044.4,1042.9,1.39]
[1759401598727,0.53177903,1044.3,1042.9,1.39]
[1759401599021,0.53177903,1044.2,1042.9,1.39]
[1759401599226,0.53177903,1044.1,1042.9,1.39]
[1759401599424,0.85401606,1044.9,1042.9,1.39]
[1759401599425,0.53177903,1044.0,1042.9,1.39]
[1759401599621,0.53177903,1043.9,1042.9,1.39]
[1759401599822,0.53177903,1043.8,1042.9,1.39]
[1759401600133,0.85401606,1044.9,1042.9,1.39]
[1759401600321,0.53184414,1044.8,1042.9,1.39]
[1759401600524,0.53184414,1044.7,1042.9,1.39]
[1759401600720,0.53184414,1044.6,1042.9,1.39]
[1759401601023,0.85401606,1044.9,1042.9,1.39]
[1759401601024,0.53184414,1044.5,1042.9,1.39]
[1759401601221,0.53184414,1044.4,1042.9,1.39]
[1759401601522,0.53184414,1044.3,1042.9,1.39]
[1759401601720,0.53184414,1044.2,1042.9,1.39]
[1759401601924,0.53184414,1044.1,1042.9,1.39]
[1759401602122,0.53184414,1044.0,1042.9,1.39]
[1759401602320,0.85401606,1044.6,1042.9,1.39]
[1759401602525,0.53172054,1044.5,1042.9,2.68346285]
[1759401602734,0.53172054,1044.4,1042.9,2.68346285]
[1759401602926,0.85401606,1045.2,1042.9,2.68346285]
[1759401603124,0.531556,1045.1,1042.9,2.68346285]
[1759401603323,0.531556,1045.0,1042.9,2.68346285]
[1759401603622,0.531556,1044.9,1042.9,2.68346285]
[1759401603826,0.531556,1044.8,1042.9,2.68346285]
[1759401604024,0.531556,1044.7,1042.9,2.68346285]
[1759401604226,0.85401606,1045.3,1042.9,2.68346285]
[1759401604227,0.531556,1044.6,1043.2,1.29346285]
[1759401604435,0.531556,1044.6,1042.9,1.39]
[1759401604436,0.85401606,1045.2,1043.3,1.29346285]
[1759401604630,0.53124908,1045.1,1043.3,1.29346285]
[1759401604929,0.53124908,1045.0,1043.3,1.29346285]
[1759401605127,0.53124908,1044.9,1043.3,1.29346285]
[1759401605325,0.53124908,1044.8,1043.3,1.29346285]
[1759401605529,0.53124908,1044.7,1043.3,1.29346285]
[1759401605836,0.85401606,1045.2,1043.3,1.29346285]
[1759401606025,0.53103068,1045.1,1043.3,1.29346285]
[1759401606230,0.53103068,1045.0,1043.3,1.29346285]
[1759401606429,0.53103068,1044.9,1043.3,1.29346285]
[1759401606630,0.53103068,1044.8,1043.3,1.29346285]
[1759401606828,0.53103068,1044.7,1043.3,1.29346285]
[1759401607027,0.85401606,1045.2,1043.3,1.29346285]
[1759401607224,0.53084781,1045.1,1043.2,1.29346285]
[1759401607427,0.53084781,1045.0,1043.0,1.29346285]
[1759401607726,0.53084781,1044.9,1043.0,1.29346285]
[1759401607928,0.53084781,1044.8,1043.0,1.29346285]
[1759401608127,0.53084781,1044.7,1043.0,1.29346285]
[1759401608329,0.85401606,1045.4,1043.1,1.378]
[1759401608526,0.53055503,1045.3,1043.1,1.378]
[1759401608725,0.53055503,1045.2,1043.2,1.74]
[1759401608933,0.53055503,1045.1,1043.2,1.74]
[1759401609125,0.53055503,1045.0,1043.2,1.74]
[1759401609329,0.53055503,1044.9,1043.2,1.74]
[1759401609528,0.53055503,1044.8,1043.2,1.74]
[1759401609729,0.53055503,1044.7,1043.2,1.74]
[1759401609932,0.85401606,1045.4,1043.2,1.74]
[1759401610128,0.53044596,1045.3,1043.2,1.74]
[1759401610328,0.53044596,1045.2,1043.2,1.74]
[1759401610533,0.53044596,1045.1,1043.2,1.74]
[1759401610727,0.53044596,1045.0,1043.2,1.74]
[1759401610932,0.53044596,1044.9,1043.2,1.74]
[1759401611129,0.53044596,1044.8,1043.2,1.74]
[1759401611333,0.53044596,1044.7,1043.2,1.74]
[1759401611530,0.85401606,1045.6,1043.2,1.74]
[1759401611734,0.53028014,1045.5,1043.2,1.74]
[1759401612032,0.53028014,1045.4,1043.2,1.74]
[1759401612230,0.53028014,1045.3,1043.2,1.74]
[1759401612433,0.53028014,1045.2,1043.2,1.74]
[1759401612735,0.53028014,1045.1,1043.2,1.74]
[1759401613029,0.53028014,1045.0,1043.2,1.74]
[1759401613329,0.53028014,1044.9,1043.2,1.74]
[1759401613530,0.53028014,1044.8,1043.2,1.74]
[1759401613730,0.53028014,1044.7,1043.2,1.74]
[1759401613934,0.85401606,1045.6,1043.2,1.74]
[1759401614129,0.53005532,1045.5,1043.2,1.74]
[1759401614329,0.53005532,1045.4,1043.2,1.74]
[1759401614529,0.53005532,1045.3,1043.2,1.74]
[1759401614733,0.53005532,1045.2,1043.2,1.74]
[1759401614933,0.53005532,1045.1,1043.2,1.74]
[1759401615233,0.53005532,1045.0,1043.2,1.74]
[1759401615433,0.53005532,1044.9,1043.2,1.74]
[1759401615636,0.53005532,1044.8,1043.2,1.74]
[1759401615834,0.53005532,1044.7,1043.2,1.74]
[1759401616130,0.85401606,1045.4,1043.2,1.74]
[1759401616432,1.38459515,1045.3,1043.2,1.74]
[1759401616635,0.53057909,1045.2,1043.2,1.74]
[1759401616832,0.53057909,1045.1,1043.2,1.74]
[1759401617133,0.53057909,1045.0,1043.2,1.74]
[1759401617334,0.53057909,1044.9,1043.2,1.74]
[1759401617533,0.53057909,1044.8,1043.2,1.74]
[1759401617733,0.53057909,1044.7,1043.2,1.74]
[1759401618039,0.85401606,1045.2,1043.2,1.74]
[1759401618242,1.38446933,1045.1,1043.2,1.74]
[1759401618446,0.53045327,1045.0,1043.2,1.74]
[1759401618634,0.53045327,1044.9,1043.2,1.74]
[1759401618839,0.53045327,1044.8,1043.2,1.74]
[1759401619038,0.53045327,1044.7,1043.2,1.74]
[1759401619334,0.85401606,1045.4,1043.2,1.74]
[1759401619538,0.53034356,1045.3,1043.2,1.74]
[1759401619736,0.53034356,1045.2,1043.2,1.74]
[1759401619937,0.53034356,1045.1,1043.2,1.74]
[1759401620237,0.53034356,1045.0,1043.2,1.74]
[1759401620448,0.53034356,1044.9,1043.2,1.74]
[1759401620755,0.53034356,1044.8,1043.2,1.74]
[1759401621034,0.53034356,1044.7,1043.2,1.74]
[1759401621339,0.85401606,1045.4,1043.2,1.74]
[1759401621646,0.53023603,1045.3,1043.2,1.74]
[1759401621839,0.53023603,1045.2,1043.2,1.74]
[1759401622034,35.07399539,1045.7,1043.2,1.74]
[1759401622035,1.38425209,1045.1,1043.2,1.74]
[1759401622239,0.53023603,1045.0,1043.2,1.74]
[1759401622439,0.53023603,1044.9,1043.2,1.74]
[1759401622649,0.53023603,1044.8,1043.2,1.74]
[1759401622836,0.53023603,1044.7,1043.2,1.74]
[1759401623035,0.53023603,1044.6,1043.2,1.74]
[1759401623340,0.85401606,1045.1,1043.2,1.74]
[1759401623542,0.53020699,1045.0,1043.2,1.74]
[1759401623740,0.53020699,1044.9,1043.2,1.74]
[1759401623940,0.53020699,1044.8,1043.2,1.74]
[1759401624141,0.53020699,1044.7,1043.2,1.74]
[1759401624438,0.53020699,1044.6,1043.2,1.74]
[1759401624649,0.85401606,1045.1,1043.2,1.74]
[1759401624841,0.53018892,1045.0,1043.2,1.74]
[1759401625040,0.53018892,1044.9,1043.2,1.74]
[1759401625240,0.53018892,1044.8,1043.2,1.74]
[1759401625437,0.53018892,1044.7,1043.2,1.74]
[1759401625639,0.53018892,1044.6,1043.2,1.74]
[1759401625952,0.85401606,1045.1,1043.2,1.74]
[1759401626140,0.53016655,1045.0,1043.2,1.74]
[1759401626440,0.53016655,1044.9,1043.2,1.74]
[1759401626634,0.53016655,1044.8,1043.2,1.74]
[1759401626836,0.85401606,1045.1,1043.2,1.74]
[1759401626837,0.53016655,1044.7,1043.2,1.74]
[1759401627037,0.53016655,1044.6,1043.2,1.74]
[1759401627240,0.85401606,1045.1,1043.2,1.74]
[1759401627437,0.53012069,1045.0,1043.2,1.74]
[1759401627655,0.53012069,1044.9,1043.2,1.74]
[1759401627941,0.53012069,1044.8,1043.2,1.74]
[1759401628237,0.53012069,1044.7,1043.2,1.74]
[1759401628440,0.53012069,1044.6,1043.2,1.74]
[1759401628741,0.85401606,1045.1,1043.2,1.74]
[1759401628938,0.53009901,1045.0,1043.2,1.74]
[1759401629137,0.53009901,1044.9,1043.2,1.74]
[1759401629342,0.53009901,1044.8,1043.2,1.74]
[1759401629542,0.53009901,1044.7,1043.2,1.74]
[1759401629740,0.53009901,1044.6,1043.2,1.74]
[1759401629937,0.85401606,1045.1,1043.2,1.74]
[1759401630141,0.53007885,1045.0,1043.2,1.74]
[1759401630338,0.53007885,1044.9,1043.2,1.74]
[1759401630542,0.53007885,1044.8,1043.2,1.74]
[1759401630740,0.53007885,1044.7,1043.2,1.74]
[1759401630942,0.53007885,1044.6,1043.2,1.74]
[1759401631139,0.85401606,1045.1,1043.2,1.74]
[1759401631343,0.53004482,1045.0,1043.2,1.74]
[1759401631540,0.53004482,1044.9,1043.2,1.74]
[1759401631844,0.53004482,1044.8,1043.2,1.74]
[1759401632147,0.53004482,1044.7,1043.2,1.74]
[1759401632343,0.53004482,1044.6,1043.2,1.74]
[1759401632544,0.85401606,1045.2,1043.2,1.74]
[1759401632743,0.53002432,1045.1,1043.2,1.74]
[1759401632941,0.53002432,1045.0,1043.2,1.74]
[1759401633140,0.53002432,1044.9,1043.2,1.74]
[1759401633344,0.53002432,1044.8,1043.2,1.74]
[1759401633643,0.53002432,1044.7,1043.2,1.74]
[1759401633844,0.53002432,1044.6,1043.2,1.74]
[1759401634045,0.85401606,1045.3,1043.2,1.74]
[1759401634240,0.52999468,1045.2,1043.2,1.74]
[1759401634445,0.52999468,1045.1,1043.2,1.74]
[1759401634646,0.52999468,1045.0,1043.2,1.74]
[1759401634845,0.52999468,1044.9,1043.2,1.74]
[1759401635046,0.52999468,1044.8,1043.2,1.74]
[1759401635248,0.52999468,1044.7,1043.2,1.74]
[1759401635448,0.52999468,1044.6,1043.2,1.74]
[1759401635749,0.85401606,1045.4,1043.2,1.74]
[1759401636046,0.52996513,1045.3,1043.2,1.74]
[1759401636249,0.52996513,1045.2,1043.2,1.74]
[1759401636549,0.52996513,1045.1,1043.2,1.74]
[1759401636748,0.52996513,1045.0,1043.2,1.74]
[1759401636947,0.52996513,1044.9,1043.2,1.74]
[1759401637145,0.52996513,1044.8,1043.2,1.74]
[1759401637449,0.52996513,1044.7,1043.2,1.74]
[1759401637659,0.52996513,1044.6,1043.2,1.74]
[1759401637860,0.85401606,1045.4,1043.2,1.74]
[1759401638046,0.52994189,1045.3,1043.2,1.74]
[1759401638250,0.52994189,1045.2,1043.2,1.74]
[1759401638545,0.52994189,1045.1,1043.2,1.74]
[1759401638749,0.52994189,1045.0,1043.2,1.74]
[1759401638949,0.52994189,1044.9,1043.2,1.74]
[1759401639147,0.52994189,1044.8,1043.2,1.74]
[1759401639350,0.52994189,1044.7,1043.2,1.74]
[1759401639649,0.52994189,1044.6,1043.2,1.74]
[1759401639853,0.52994189,1044.5,1043.2,1.74]
[1759401640052,0.85401606,1045.4,1043.2,1.74]
[1759401640249,0.52995298,1045.3,1043.2,1.74]
[1759401640451,0.52995298,1045.2,1043.2,1.74]
[1759401640650,0.52995298,1045.1,1043.2,1.74]
[1759401640949,0.52995298,1045.0,1043.2,1.74]
[1759401641149,0.52995298,1044.9,1043.2,1.74]
[1759401641348,0.52995298,1044.8,1043.2,1.74]
[1759401641659,0.52995298,1044.7,1043.2,1.74]
[1759401641852,0.52995298,1044.6,1043.2,1.74]
[1759401642050,0.52995298,1044.5,1043.2,1.74]
[1759401642254,0.85401606,1045.2,1043.2,1.74]
[1759401642452,0.53006682,1045.1,1043.2,1.74]
[1759401642649,1.29583328,1045.4,1043.2,1.74]
[1759401642650,1.38408288,1045.0,1043.2,1.74]
[1759401642854,0.53006682,1044.9,1043.2,1.74]
[1759401643154,0.53006682,1044.8,1043.2,1.74]
[1759401643449,0.53006682,1044.7,1043.2,1.74]
[1759401643648,0.53006682,1044.6,1043.2,1.74]
[1759401643853,0.53006682,1044.5,1043.2,1.74]
[1759401644050,0.85401606,1045.1,1043.2,1.74]
[1759401644250,0.53011291,1045.0,1043.2,1.74]
[1759401644449,0.53011291,1044.9,1043.2,1.74]
[1759401644651,0.53011291,1044.8,1043.2,1.74]
[1759401644850,0.53011291,1044.7,1043.2,1.74]
[1759401645050,0.53011291,1044.6,1043.2,1.74]
[1759401645253,0.53011291,1044.5,1043.2,1.74]
[1759401645453,0.85401606,1045.1,1043.2,1.74]
[1759401645651,0.53020718,1045.0,1043.2,1.74]
[1759401645855,0.53020718,1044.9,1043.2,1.74]
[1759401646052,0.53020718,1044.8,1043.2,1.74]
[1759401646256,0.53020718,1044.7,1043.2,1.74]
[1759401646456,0.85401606,1045.4,1043.3,1.29346285]
[1759401646656,1.38382427,1045.3,1043.2,3.03346285]
[1759401646857,0.52980821,1045.2,1043.2,3.03346285]
[1759401647057,0.52980821,1045.1,1043.3,1.29346285]
[1759401647258,0.85401606,1045.7,1043.5,1.29346285]
[1759401647455,0.52949598,1045.6,1043.3,1.29346285]
[1759401647654,0.52949598,1045.5,1043.4,1.29346285]
[1759401647858,0.52949598,1045.4,1043.4,1.29346285]
[1759401648059,1.02056746,1046.0,1043.4,1.29346285]
[1759401648060,0.52949598,1045.3,1043.4,1.29346285]
[1759401648260,1.02056746,1046.0,1043.3,1.29346285]
[1759401648457,0.52928511,1045.9,1043.1,1.378]
[1759401648762,0.52928511,1045.8,1043.7,1.29346285]
[1759401649062,0.52928511,1045.7,1043.8,1.29346285]
[1759401649257,0.16648368,1046.4,1043.9,1.629]
[1759401649461,0.52867158,1046.3,1043.9,1.629]
[1759401649760,0.52867158,1046.2,1043.9,1.629]
[1759401649961,0.85401606,1046.0,1043.9,1.629]
[1759401650260,0.85401606,1045.8,1043.9,1.629]
[1759401650456,0.52867158,1045.7,1043.9,1.629]
[1759401650661,0.52867158,1045.6,1043.9,1.629]
[1759401650960,0.52867158,1045.5,1043.9,1.629]
[1759401651156,0.52867158,1045.4,1043.9,1.629]
[1759401651359,0.52867158,1045.3,1043.9,1.629]
[1759401651558,0.52867158,1045.2,1043.9,1.629]
[1759401651857,0.52867158,1045.1,1043.9,1.629]
[1759401652058,0.52867158,1045.0,1043.9,1.629]
[1759401652358,0.52867158,1044.9,1043.9,1.629]
[1759401652657,0.85401606,1045.4,1043.9,1.629]
[1759401652862,0.52929077,1045.3,1043.9,1.629]
[1759401653161,0.52929077,1045.2,1043.9,1.629]
[1759401653361,0.52929077,1045.1,1043.9,1.629]
[1759401653559,0.52929077,1045.0,1043.9,1.629]
[1759401653758,0.52929077,1044.9,1043.9,1.629]
[1759401653961,0.85401606,1045.4,1043.9,1.629]
[1759401654158,0.52942985,1045.3,1043.9,1.629]
[1759401654359,0.52942985,1045.2,1043.9,1.629]
[1759401654557,0.52942985,1045.1,1043.9,1.629]
[1759401654762,0.52942985,1045.0,1043.9,1.629]
[1759401654961,0.52942985,1044.9,1043.9,1.629]
[1759401655261,0.52942985,1044.8,1043.9,1.629]
[1759401655461,0.52942985,1044.7,1043.9,1.629]
[1759401655662,0.52992729,1044.6,1043.9,1.629]
[1759401655863,0.85401606,1045.4,1043.9,1.629]
[1759401656164,0.52991847,1045.3,1043.9,1.629]
[1759401657261,0.52991847,1045.2,1043.9,1.629]
[1759401657459,0.52991847,1045.1,1043.9,1.629]
[1759401657662,0.52991847,1045.0,1043.9,1.629]
[1759401657862,0.52991847,1044.9,1043.9,1.629]
[1759401658062,0.52991847,1044.8,1043.9,1.629]
[1759401658259,0.52991847,1044.7,1043.9,1.629]
[1759401658462,0.52991847,1044.6,1043.9,1.629]
[1759401658658,0.85401606,1045.2,1043.9,1.629]
[1759401658858,0.53066756,1045.1,1043.9,1.629]
[1759401659164,0.53066756,1045.0,1043.9,1.629]
[1759401659357,0.53066756,1044.9,1043.9,1.629]
[1759401659562,0.53066756,1044.8,1044.0,1.476]
[1759401659760,0.53066756,1044.7,1044.0,1.476]
[1759401660064,0.53066756,1044.6,1044.0,1.476]
[1759401660260,0.85401606,1045.2,1044.0,1.476]
[1759401660459,0.53097796,1045.1,1044.0,1.476]
[1759401660759,0.53097796,1045.0,1044.0,1.476]
[1759401660964,0.53097796,1044.9,1044.0,1.476]
[1759401661164,0.53097796,1044.8,1044.0,1.476]
[1759401661363,0.85401606,1045.3,1044.0,1.476]
[1759401661364,0.53097796,1044.7,1044.0,1.476]
[1759401661667,0.53097796,1044.6,1044.0,1.476]
[1759401661865,0.85401606,1045.3,1044.0,1.476]
[1759401662066,0.53133947,1045.2,1044.0,1.476]
[1759401662265,0.53133947,1045.1,1044.0,1.476]
[1759401662462,0.85401606,1046.1,1044.0,1.476]
[1759401662663,0.5312758,1046.0,1044.0,1.476]
[1759401662866,0.5312758,1045.9,1044.0,1.476]
[1759401663066,0.5312758,1045.8,1044.0,1.476]
[1759401663267,0.5312758,1045.7,1044.0,1.476]
[1759401663465,0.5312758,1045.6,1044.0,1.476]
[1759401663766,0.5312758,1045.5,1044.0,1.476]
[1759401663966,0.5312758,1045.4,1044.0,1.476]
[1759401664267,0.85401606,1046.2,1044.0,1.476]
[1759401664468,0.53069516,1046.1,1044.0,1.476]
[1759401664762,0.16648368,1046.4,1044.0,1.476]
[1759401664763,0.53069516,1046.0,1044.0,1.476]
[1759401665063,0.85401606,1045.8,1044.0,1.476]
[1759401665267,0.53069516,1045.7,1044.0,1.476]
[1759401665466,0.53069516,1045.6,1044.0,1.476]
[1759401665666,0.53069516,1045.5,1044.0,1.476]
[1759401665964,0.53069516,1045.4,1044.0,1.476]
[1759401666164,0.53069516,1045.3,1044.0,1.476]
[1759401666367,0.53069516,1045.2,1044.0,1.476]
[1759401666569,0.53069516,1045.1,1044.0,1.476]
[1759401666768,0.53069516,1045.0,1044.0,1.476]
[1759401666969,0.85401606,1046.1,1044.0,1.476]
[1759401667269,0.53075906,1046.0,1044.0,1.476]
[1759401667468,0.53075906,1045.9,1044.0,1.476]
[1759401667670,0.53075906,1045.8,1044.0,1.476]
[1759401667868,0.53075906,1045.7,1044.0,1.476]
[1759401668066,0.53075906,1045.6,1044.0,1.476]
[1759401668369,0.53075906,1045.5,1044.0,1.476]
[1759401668570,0.53075906,1045.4,1044.0,1.476]
[1759401668772,0.53075906,1045.3,1044.0,1.476]
[1759401668969,0.53075906,1045.2,1044.0,1.476]
[1759401669271,0.53075906,1045.1,1044.0,1.476]
[1759401669473,0.53075906,1045.0,1044.0,1.476]
[1759401669668,0.85401606,1046.0,1044.0,1.476]
[1759401669868,0.530618,1045.9,1044.0,1.476]
[1759401670072,0.85401606,1045.5,1044.0,1.476]
[1759401670273,0.530618,1045.4,1044.0,1.476]
[1759401670470,0.530618,1045.3,1044.0,1.476]
[1759401670674,0.530618,1045.2,1044.0,1.476]
[1759401670973,0.530618,1045.1,1044.0,1.476]
[1759401671168,0.530618,1045.0,1044.0,1.476]
[1759401671373,0.85401606,1045.6,1044.0,1.476]
[1759401671573,1.38457096,1045.5,1044.0,1.476]
[1759401671769,0.5305549,1045.4,1044.0,1.476]
[1759401671969,0.5305549,1045.3,1044.0,1.476]
[1759401672169,0.5305549,1045.2,1044.0,1.476]
[1759401672372,0.5305549,1045.1,1044.0,1.476]
[1759401672574,0.5305549,1045.0,1044.0,1.476]
[1759401672772,0.85401606,1045.5,1044.0,1.476]
[1759401672972,0.53052313,1045.4,1044.0,1.476]
[1759401673273,0.53052313,1045.3,1044.0,1.476]
[1759401673471,0.53052313,1045.2,1044.0,1.476]
[1759401673670,0.53052313,1045.1,1044.0,1.476]
[1759401673871,0.53052313,1045.0,1044.0,1.476]
[1759401674071,0.85401606,1045.6,1044.0,1.476]
[1759401674272,0.53049349,1045.5,1044.0,1.476]
[1759401674472,0.53049349,1045.4,1044.0,1.476]
[1759401674672,0.53049349,1045.3,1044.0,1.476]
[1759401674875,0.53049349,1045.2,1044.0,1.476]
[1759401675072,0.53049349,1045.1,1044.0,1.476]
[1759401675375,0.53049349,1045.0,1044.0,1.476]
[1759401675575,0.85401606,1045.6,1044.0,1.476]
[1759401675775,0.53043991,1045.5,1044.0,1.476]
[1759401675972,0.53043991,1045.4,1044.0,1.476]
[1759401676170,0.53043991,1045.3,1044.0,1.476]
[1759401676374,0.53043991,1045.2,1044.0,1.476]
[1759401676675,0.53043991,1045.1,1044.0,1.476]
[1759401676876,0.53043991,1045.0,1044.0,1.476]
[1759401677075,0.85401606,1045.6,1044.0,1.476]
[1759401677273,0.53073415,1045.5,1044.0,1.476]
[1759401677477,0.53073415,1045.4,1044.0,1.476]
[1759401677676,0.53073415,1045.3,1044.0,1.476]
[1759401677877,0.53073415,1045.2,1044.0,1.476]
[1759401678077,0.53073415,1045.1,1044.0,1.476]
[1759401678274,0.53073415,1045.0,1044.0,1.476]
[1759401678477,0.53073415,1044.9,1044.0,1.476]
[1759401678678,0.85401606,1045.4,1044.0,1.476]
[1759401678878,0.53073535,1045.3,1044.0,1.476]
[1759401679078,0.53073535,1045.2,1044.0,1.476]
[1759401679278,0.53073535,1045.1,1044.0,1.476]
[1759401679478,0.53073535,1045.0,1044.0,1.476]
[1759401679679,0.53073535,1044.9,1044.0,1.476]
[1759401679879,0.53073535,1044.8,1044.0,1.476]
[1759401680179,0.53073535,1044.7,1044.0,1.476]
[1759401680380,0.53073535,1044.6,1044.0,1.476]
[1759401680580,0.53073535,1044.5,1044.0,1.476]
[1759401680790,0.53073535,1044.4,1044.0,1.476]
[1759401680976,0.53073535,1044.3,1044.0,1.476]
[1759401681179,0.53073535,1044.2,1044.0,1.476]
[1759401681378,0.53073535,1044.1,1044.0,1.476]
[1759401696607,0.53073535,1044.1,1043.8,1.52]
[1759401696807,0.85401606,1044.6,1043.8,1.52]
[1759401697104,0.52714475,1044.5,1043.8,1.52]
[1759401697303,0.52714475,1044.4,1043.8,1.52]
[1759401697505,0.52714475,1044.3,1043.8,1.52]